fUSD/lending_fUSD_20251112
["ID","MTS","AMOUNT","RATE_DAILY","PERIOD"]
[393701822,1762932640139,-500.0,0.00037497,15]
[393701824,1762932640146,-420000.0,0.00037498,2]
[393701826,1762932640155,-150.0,0.000375,120]
[393701828,1762932640163,-156.61,0.00037508,60]
[393701830,1762932640171,-154.03,0.00037508,60]
[393701832,1762932640180,-416.0,0.00037554,120]
[393701833,1762932640189,-500.0,0.00037567,30]
[393701835,1762932640197,-299.94,0.00037599,7]
[393701837,1762932640205,-178.36569229,0.000376,2]
[393701839,1762932640214,-1594.41380969,0.000376,2]
[393701842,1762932640223,-1091.58089203,0.000376,120]
[393701844,1762932640232,-23641.8411929,0.000376,2]
[393701846,1762932640241,-1285.89372,0.000376,2]
[393701848,1762932640250,-1705.6854324,0.000376,2]
[393701850,1762932640261,-156.61,0.00037608,60]
[393701852,1762932640271,-549.74,0.00037612,2]
[393701854,1762932640280,-416.24,0.00037612,2]
[393701856,1762932640290,-1099.36,0.00037612,2]
[393701858,1762932640300,-547.43,0.00037612,2]
[393701860,1762932640311,-416.0,0.00037615,2]
[393701862,1762932640320,-152.0,0.00037653,7]
[393701864,1762932640329,-4474.41900365,0.00037677,2]
[393701866,1762932640339,-1934.04201873,0.00037679,2]
[393701868,1762932640348,-156.61,0.00037708,60]
[393701870,1762932640357,-6899.52789097,0.00037771,4]
[393701872,1762932640366,-588.07,0.00037771,14]
[393701873,1762932640376,-1207.25,0.00037781,2]
[393701875,1762932640386,-1207.25,0.00037781,2]
[393701877,1762932640395,-1207.25,0.00037781,2]
[393701880,1762932640405,-417.0,0.00037796,7]
[393701882,1762932640414,-600.0,0.000378,13]
[393701883,1762932640423,-156.61,0.00037808,60]
[393701886,1762932640434,-15523.72686005,0.00037849,5]
[393701888,1762932640443,-273.74139292,0.00037896,7]
[393701889,1762932640453,-1200.0,0.000379,13]
[393701891,1762932640464,-156.61,0.00037908,60]
[393701894,1762932640474,-416.0,0.00037937,2]
[393701896,1762932640483,-416.0,0.00037938,2]
[393701898,1762932640493,-6899.52789097,0.00037948,4]
[393701900,1762932640504,-4474.41900365,0.00037956,2]
[393701902,1762932640513,-1934.04201873,0.00037958,2]
[393701904,1762932640523,-165.46327581,0.00037968,2]
[393701906,1762932640533,-416.0,0.00037984,2]
[393701908,1762932640543,-41397.1673458,0.0003799,4]
[393701910,1762932640552,-150.0,0.00038,120]
[393701912,1762932640562,-631.2904982,0.00038,120]
[393701914,1762932640571,-15368.19613051,0.00038,2]
[393701916,1762932640580,-173.0,0.00038,30]
[393701918,1762932640590,-582.0,0.00038,30]
[393701919,1762932640599,-76497.02472379,0.00038,2]
[393701922,1762932640609,-156.61,0.00038008,60]
[393701924,1762932640619,-6899.52789097,0.00038011,4]
[393701925,1762932640628,-1000.0,0.00038012,7]
[393701927,1762932640638,-503.78455314,0.00038021,5]
[393701929,1762932640648,-1115.21991021,0.00038021,5]
[393701931,1762932640658,-1009.10429346,0.00038021,5]
[393701933,1762932640668,-588.07,0.00038045,14]
[393701935,1762932640679,-168.0,0.00038054,120]
[393701938,1762932640689,-6899.52789097,0.0003807,4]
[393701940,1762932640699,-1700.0,0.00038095,7]
[393701941,1762932640708,-500.0,0.00038095,7]
[393701942,1762932640717,-156.61,0.00038108,60]
[393701943,1762932640728,-299.94,0.00038147,8]
[393701944,1762932640737,-500.0,0.00038157,30]
[393701945,1762932640748,-416.0,0.00038184,7]
[393701946,1762932640758,-6899.52789097,0.00038191,4]
[393701948,1762932640767,-154.87847772,0.00038192,30]
[393701950,1762932640776,-500.0,0.000382,30]
[393701952,1762932640787,-500.0,0.000382,30]
[393701954,1762932640796,-500.0,0.000382,30]
[393701956,1762932640806,-500.0,0.00038201,7]
[393701958,1762932640815,-500.0,0.00038201,7]
[393701960,1762932640826,-500.0,0.00038201,7]
[393701962,1762932640835,-500.0,0.00038201,7]
[393701964,1762932640845,-500.0,0.00038201,7]
[393701966,1762932640854,-500.0,0.00038201,7]
[393701968,1762932640863,-500.0,0.00038201,7]
[393701970,1762932640873,-228.14,0.00038201,7]
[393701971,1762932640882,-500.0,0.00038201,7]
[393701973,1762932640891,-500.0,0.00038201,7]
[393701975,1762932640899,-500.0,0.00038201,7]
[393701977,1762932640908,-500.0,0.00038201,7]
[393701979,1762932640917,-500.0,0.00038201,7]
[393701981,1762932640927,-500.0,0.00038201,7]
[393701983,1762932640936,-500.0,0.00038201,7]
[393701985,1762932640946,-500.0,0.00038201,7]
[393701987,1762932640957,-500.0,0.00038201,7]
[393701989,1762932640967,-500.0,0.00038201,7]
[393701992,1762932640977,-500.0,0.00038201,7]
[393701994,1762932640987,-421.85,0.00038201,7]
[393701996,1762932640996,-500.0,0.00038201,7]
[393701998,1762932641006,-500.0,0.00038201,7]
[393702000,1762932641016,-478.56668374,0.00038201,7]
[393702002,1762932641025,-156.61,0.00038208,60]
[393702004,1762932641036,-166.66,0.00038219,2]
[393702006,1762932641051,-4474.41900365,0.00038236,2]
[393702008,1762932641060,-1934.04201873,0.00038238,2]
[393702010,1762932641070,-20698.5836729,0.00038246,4]
[393702012,1762932641082,-200.0,0.00038247,7]
[393702014,1762932641092,-1000.0,0.0003825,120]
[393702015,1762932641102,-282.6623,0.00038256,2]
[393702016,1762932641111,-29741.8854,0.00038256,2]
[393702017,1762932641123,-162.62631696,0.00038256,2]
[393702018,1762932641133,-2505.0,0.00038286,5]
[393702019,1762932641142,-156.63134366,0.00038308,60]
[393702020,1762932641152,-416.0,0.0003831,7]
[393702021,1762932641161,-500.0,0.00038312,30]
[393702022,1762932641171,-857.11836138,0.00038318,30]
[393702023,1762932641181,-588.07,0.00038319,14]
[393702024,1762932641191,-61173.39656424,0.00038346,4]
[393702063,1762932646047,-490.64563927,0.00038346,4]
[393702080,1762933402937,150.27,0.00013699,2]
[393702082,1762933485214,548.0,0.00030136,120]
[393702118,1762933790767,-150.27,0.00020951,2]
[393702122,1762933831780,-150.27,0.00028203,2]
[393702123,1762933831790,-178.4,0.00033523,2]
[393702124,1762933831799,-1000.0,0.00034828,2]
[393702125,1762933831808,-172.0,0.00034937,120]
[393702126,1762933831817,-97.58767407,0.00034951,120]
[393702499,1762933837793,-68.41232593,0.00034951,120]
[393702500,1762933837802,-174.38893911,0.00035355,2]
[393702501,1762933837814,-150.27,0.00035455,2]
[393702502,1762933837823,-389.85,0.00035508,120]
[393702503,1762933837832,-1192.51,0.00035631,30]
[393702504,1762933837842,-150.0,0.00035652,2]
[393702505,1762933837851,-1000.0,0.00036,120]
[393702506,1762933837860,-168.0,0.00036142,2]
[393702507,1762933837869,-2503.07,0.00036155,2]
[393702508,1762933837878,-73.76376312,0.00036188,30]
[393702514,1762933839910,-426.23623688,0.00036188,30]
[393702515,1762933839920,-1075.2,0.00036346,2]
[393702516,1762933839928,-500.0,0.00036392,30]
[393702517,1762933839938,-168.0,0.00036439,2]
[393702518,1762933839947,-500.0,0.00036475,30]
[393702519,1762933839957,-500.0,0.00036484,30]
[393702520,1762933839966,-168.0,0.00036604,7]
[393702521,1762933839975,-9475.39,0.00036616,2]
[393702522,1762933839984,-500.0,0.00036654,30]
[393702523,1762933839994,-500.0,0.00036674,30]
[393702524,1762933840004,-172.0,0.00036684,120]
[393702526,1762933840014,-500.0,0.00036689,30]
[393702528,1762933840023,-499.27551682,0.00036759,2]
[393702530,1762933840033,-478.56668374,0.00036793,2]
[393702532,1762933840043,-503.78455314,0.00036873,5]
[393702534,1762933840053,-500.0,0.00036873,5]
[393702536,1762933840062,-646.437,0.0003689,46]
[393702538,1762933840071,-478.56668374,0.0003689,3]
[393702540,1762933840080,-11568.784095,0.0003689,3]
[393702542,1762933840089,-701.17,0.00036899,14]
[393702544,1762933840098,-500.0,0.00036899,15]
[393702546,1762933840108,-239.22822519,0.00036899,15]
[393702548,1762933840117,-500.0,0.00036899,15]
[393702549,1762933840128,-179.31103255,0.00036899,15]
[393702550,1762933840137,-500.0,0.00036899,15]
[393702551,1762933840146,-500.0,0.00036899,15]
[393702552,1762933840155,-500.0,0.00036899,15]
[393702553,1762933840165,-500.0,0.00036899,15]
[393702554,1762933840175,-500.0,0.00036899,15]
[393702555,1762933840184,-500.0,0.00036899,15]
[393702556,1762933840193,-500.0,0.00036899,15]
[393702557,1762933840202,-645.0,0.00036899,15]
[393702558,1762933840211,-500.0,0.00036899,15]
[393702559,1762933840220,-500.0,0.00036899,15]
[393702560,1762933840230,-500.0,0.00036899,15]
[393702561,1762933840239,-500.0,0.00036899,15]
[393702562,1762933840247,-500.0,0.00036899,15]
[393702563,1762933840256,-500.0,0.00036899,15]
[393702564,1762933840453,-500.0,0.00036899,15]
[393702565,1762933840463,-318.79929293,0.00036899,15]
[393702566,1762933840473,-264.62647715,0.00036899,2]
[393702567,1762933840482,-500.0,0.00036899,15]
[393702568,1762933840491,-500.0,0.00036899,15]
[393702569,1762933840500,-500.0,0.00036899,15]
[393702570,1762933840510,-500.0,0.00036899,15]
[393702571,1762933840519,-600.0,0.00036899,15]
[393702572,1762933840529,-500.0,0.00036899,15]
[393702573,1762933840538,-500.0,0.00036899,15]
[393702574,1762933840547,-500.0,0.00036899,2]
[393702575,1762933840556,-500.0,0.00036899,15]
[393702576,1762933840566,-153.05402667,0.00036899,15]
[393702577,1762933840575,-500.0,0.00036899,15]
[393702578,1762933840584,-500.0,0.00036899,15]
[393702579,1762933840593,-500.0,0.00036899,15]
[393702580,1762933840602,-500.0,0.00036899,15]
[393702581,1762933840611,-500.0,0.00036899,15]
[393702582,1762933840620,-500.0,0.00036899,15]
[393702583,1762933840629,-600.0,0.00036899,15]
[393702584,1762933840638,-500.0,0.00036899,15]
[393702585,1762933840647,-500.0,0.00036899,15]
[393702586,1762933840656,-191.83664696,0.00036899,15]
[393702587,1762933840665,-500.0,0.00036899,2]
[393702588,1762933840675,-500.0,0.00036899,15]
[393702589,1762933840684,-500.0,0.00036899,15]
[393702590,1762933840693,-350.0,0.00036899,15]
[393702591,1762933840703,-500.0,0.00036899,15]
[393702592,1762933840712,-500.0,0.00036899,15]
[393702593,1762933840721,-420000.0,0.000369,2]
[393702594,1762933840731,-2305.1,0.00036943,2]
[393702595,1762933840740,-1000.0,0.00037,120]
[393702596,1762933840749,-397.0,0.00037084,7]
[393702597,1762933840758,-826.34172107,0.00037085,3]
[393702598,1762933840767,-166.67,0.00037094,2]
[393702599,1762933840776,-500.0,0.00037097,30]
[393702600,1762933840785,-701.17,0.00037173,14]
[393702601,1762933840794,-500.0,0.00037284,30]
[393702602,1762933840803,-2000.0,0.000373,2]
[393702603,1762933840812,-826.34172107,0.00037336,3]
[393702604,1762933840821,-500.0,0.0003738,30]
[393702605,1762933840830,-1000.0,0.00037421,5]
[393702606,1762933840839,-168.0,0.00037442,2]
[393702607,1762933840847,-701.17,0.00037447,14]
[393702608,1762933840856,-1000.0,0.00037453,2]
[393702609,1762933840865,-299.94,0.00037497,7]
[393702610,1762933840874,-150.0,0.000375,120]
[393702611,1762933840883,-154.03,0.00037509,60]
[393702612,1762933840892,-156.35,0.00037509,60]
[393702613,1762933840901,-329.94,0.00037571,2]
[393702614,1762933840910,-471.79,0.00037571,2]
[393702615,1762933840919,-826.34172107,0.00037588,3]
[393702616,1762933840929,-1000.0,0.000376,30]
[393702617,1762933840938,-1000.0,0.000376,30]
[393702618,1762933840947,-154.03,0.00037609,60]
[393702619,1762933840956,-156.35,0.00037609,60]
[393702620,1762933840965,-322.0,0.00037613,120]
[393702621,1762933840974,-420.0,0.00037638,7]
[393702622,1762933840984,-156.35,0.00037709,60]
[393702623,1762933840993,-500.0,0.00037711,30]
[393702624,1762933841003,-701.17,0.00037721,14]
[393702625,1762933841012,-300.0,0.00037744,7]
[393702626,1762933841021,-330.0,0.00037744,7]
[393702627,1762933841030,-601.8422817,0.00037782,30]
[393702628,1762933841038,-1302.0,0.00037808,30]
[393702629,1762933841047,-156.35,0.00037809,60]
[393702630,1762933841057,-433.0,0.00037832,7]
[393702631,1762933841066,-500.0,0.00037842,30]
[393702632,1762933841076,-15523.72686005,0.0003786,5]
[393702633,1762933841085,-300.0,0.00037881,7]
[393702634,1762933841095,-330.0,0.00037881,7]
[393702635,1762933841107,-827.0,0.00037899,7]
[393702636,1762933841117,-823.0,0.00037899,7]
[393702637,1762933841127,-600.0,0.000379,13]
[393702638,1762933841137,-156.35,0.00037909,60]
[393702639,1762933841146,-615.21991021,0.00037968,5]
[393702640,1762933841156,-701.17,0.00037995,14]
[393702641,1762933841166,-150.0,0.00038,120]
[393702642,1762933841175,-1000.0,0.00038,120]
[393702643,1762933841185,-173.0,0.00038,30]
[393702644,1762933841194,-582.0,0.00038,30]
[393702645,1762933841203,-156.35,0.00038009,60]
[393702646,1762933841212,-667.765856,0.00038011,2]
[393702647,1762933841222,-300.0,0.00038018,7]
[393702648,1762933841231,-330.0,0.00038018,7]
[393702649,1762933841241,-299.94,0.00038045,8]
[393702650,1762933841250,-165.46327581,0.00038051,2]
[393702651,1762933841260,-397.0,0.00038075,7]
[393702652,1762933841269,-1700.0,0.00038095,7]
[393702653,1762933841278,-500.0,0.00038095,7]
[393702654,1762933841287,-2274.67662181,0.00038101,2]
[393702655,1762933841296,-156.35,0.00038109,60]
[393702656,1762933841306,-500.0,0.00038143,30]
[393702657,1762933841315,-500.0,0.00038146,30]
[393702658,1762933841324,-300.0,0.00038155,7]
[393702659,1762933841334,-330.0,0.00038155,7]
[393702660,1762933841343,-153.59012997,0.00038192,30]
[393702661,1762933841352,-500.0,0.000382,30]
[393702662,1762933841362,-567.33047191,0.000382,30]
[393702663,1762933841375,-500.0,0.00038201,7]
[393702664,1762933841385,-500.0,0.00038201,7]
[393702665,1762933841394,-500.0,0.00038201,7]
[393702666,1762933841403,-500.0,0.00038201,7]
[393702667,1762933841414,-500.0,0.00038201,7]
[393702668,1762933841423,-500.0,0.00038201,7]
[393702669,1762933841432,-500.0,0.00038201,7]
[393702670,1762933841443,-500.0,0.00038201,7]
[393702671,1762933841454,-500.0,0.00038201,7]
[393702672,1762933841463,-500.0,0.00038201,7]
[393702673,1762933841474,-500.0,0.00038201,7]
[393702674,1762933841484,-500.0,0.00038201,7]
[393702675,1762933841493,-500.0,0.00038201,7]
[393702676,1762933841502,-500.0,0.00038201,7]
[393702677,1762933841511,-500.0,0.00038201,7]
[393702678,1762933841520,-500.0,0.00038201,7]
[393702679,1762933841530,-421.85,0.00038201,7]
[393702680,1762933841540,-500.0,0.00038201,7]
[393702681,1762933841549,-500.0,0.00038201,7]
[393702682,1762933841561,-500.0,0.00038201,7]
[393702683,1762933841570,-500.0,0.00038201,7]
[393702684,1762933841579,-228.14,0.00038201,7]
[393702685,1762933841588,-478.56668374,0.00038201,7]
[393702686,1762933841599,-397.0,0.00038201,2]
[393702687,1762933841609,-156.35,0.00038209,60]
[393702688,1762933841619,-397.0,0.00038216,120]
[393702689,1762933841628,-503.16454672,0.00038218,2]
[393702690,1762933841637,-250.0,0.00038247,14]
[393702691,1762933841646,-161.72481843,0.00038256,11]
[393702692,1762933841655,-1688.32266,0.00038256,2]
[393702693,1762933841664,-701.17151716,0.00038269,14]
[393702694,1762933841674,-500.0,0.00038273,5]
[393702695,1762933841684,-5602.58139114,0.00038274,3]
[393702696,1762933841694,-31824.460217,0.00038284,2]
[393702697,1762933841704,-1491.4384164,0.00038284,2]
[393702698,1762933841713,-330.0,0.00038292,7]
[393702699,1762933841723,-2503.0,0.00038299,5]
[393702700,1762933841732,-500.0,0.00038299,60]
[393702701,1762933841742,-500.0,0.00038299,120]
[393702702,1762933841751,-150.0,0.00038299,60]
[393702703,1762933841760,-500.0,0.00038299,60]
[393702704,1762933841770,-500.0,0.00038299,10]
[393702705,1762933841779,-500.0,0.00038299,60]
[393702706,1762933841789,-500.0,0.00038299,60]
[393702707,1762933841798,-500.0,0.00038299,2]
[393702708,1762933841807,-729.0,0.00038299,60]
[393702709,1762933841816,-153.0838055,0.00038299,60]
[393702710,1762933841825,-500.0,0.00038299,60]
[393702711,1762933841834,-150.0,0.00038299,2]
[393702712,1762933841843,-500.0,0.00038299,60]
[393702713,1762933841852,-150.0,0.00038299,60]
[393702714,1762933841862,-5602.58139114,0.00038299,3]
[393702715,1762933841871,-1550.0,0.000383,7]
[393702716,1762933841880,-156.35,0.00038309,60]
[393702717,1762933841890,-5602.58139114,0.00038325,3]
[393702718,1762933841899,-22410.3255646,0.00038326,3]
[393702719,1762933841908,-153.59012997,0.00038329,30]
[393702720,1762933841918,-11205.1627823,0.00038334,3]
[393702721,1762933841928,-22410.3255646,0.00038336,3]
[393702722,1762933841938,-5602.58139114,0.0003834,3]
[393702723,1762933841948,-24044.30623614,0.00038344,120]
[393702724,1762933841957,-500.0,0.00038345,4]
[393702725,1762933841967,-500.0,0.00038345,4]
[393702726,1762933841976,-500.0,0.00038345,4]
[393702727,1762933841985,-529.95219414,0.00038345,4]
[393702728,1762933841994,-500.0,0.00038345,4]
[393702729,1762933842004,-500.0,0.00038345,4]
[393702730,1762933842014,-500.0,0.00038345,4]
[393702731,1762933842023,-500.0,0.00038345,4]
[393702732,1762933842033,-500.0,0.00038345,4]
[393702733,1762933842043,-500.0,0.00038345,4]
[393702734,1762933842052,-500.0,0.00038345,4]
[393702735,1762933842062,-500.0,0.00038345,4]
[393702736,1762933842071,-272.34449863,0.00038345,4]
[393702737,1762933842080,-22410.3255646,0.00038346,3]
[393702738,1762933842090,-1000.0,0.0003835,4]
[393702739,1762933842100,-1000.0,0.0003835,3]
[393702740,1762933842109,-1000.0,0.0003835,5]
[393702741,1762933842119,-478.56668374,0.0003835,120]
[393702742,1762933842128,-5602.58139114,0.00038352,3]
[393702743,1762933842137,-2274.67662181,0.00038353,2]
[393702744,1762933842147,-999.0,0.00038355,120]
[393702745,1762933842156,-480.0,0.00038356,7]
[393702746,1762933842165,-776.67252039,0.00038356,30]
[393702747,1762933842176,-1000.0,0.00038356,2]
[393702748,1762933842185,-1000.0,0.00038356,2]
[393702749,1762933842195,-460.12287621,0.00038356,20]
[393702750,1762933842205,-205.15543338,0.00038356,20]
[393702751,1762933842215,-500.0,0.00038356,20]
[393702752,1762933842224,-500.0,0.00038356,20]
[393702753,1762933842233,-500.0,0.00038356,20]
[393702754,1762933842243,-500.0,0.00038356,20]
[393702755,1762933842252,-500.0,0.00038356,20]
[393702756,1762933842261,-1000.0,0.00038356,2]
[393702757,1762933842271,-1000.0,0.00038356,2]
[393702758,1762933842280,-1000.0,0.00038356,2]
[393702759,1762933842289,-1000.0,0.00038356,2]
[393702760,1762933842298,-500.0,0.00038356,20]
[393702761,1762933842307,-500.0,0.00038356,20]
[393702762,1762933842316,-500.0,0.00038356,20]
[393702763,1762933842325,-345.97008112,0.00038356,20]
[393702764,1762933842334,-523.14596889,0.00038356,20]
[393702765,1762933842343,-3305.0,0.00038356,30]
[393702766,1762933842352,-500.0,0.00038356,30]
[393702767,1762933842361,-250.0,0.00038356,24]
[393702768,1762933842375,-177.04,0.00038356,2]
[393702769,1762933842384,-356.19,0.00038356,2]
[393702770,1762933842393,-900.0,0.00038369,7]
[393702771,1762933842403,-577.06784667,0.00038373,5]
[393702772,1762933842413,-504.15122996,0.00038373,5]
[393702773,1762933842422,-191.12,0.00038385,2]
[393702774,1762933842431,-478.56668374,0.000384,30]
[393702775,1762933842441,-156.39134366,0.00038409,120]
[393702776,1762933842452,-5602.58139114,0.00038426,3]
[393702777,1762933842462,-507.36782787,0.00038436,60]
[393702778,1762933842471,-500.0,0.00038436,120]
[393702779,1762933842481,-150.0,0.00038436,60]
[393702780,1762933842490,-500.0,0.00038436,60]
[393702781,1762933842499,-500.0,0.00038436,10]
[393702782,1762933842509,-500.0,0.00038436,60]
[393702783,1762933842519,-500.0,0.00038436,60]
[393702784,1762933842528,-500.0,0.00038436,2]
[393702785,1762933842538,-729.0,0.00038436,60]
[393702786,1762933842547,-618.314595,0.00038436,60]
[393702787,1762933842557,-500.0,0.00038436,60]
[393702789,1762933842566,-150.0,0.00038436,60]
[393702791,1762933842575,-153.59012997,0.00038493,30]
[393702793,1762933842585,-1200.0,0.000385,14]
[393702795,1762933842594,-480.0,0.00038509,7]
[393702797,1762933842603,-500.0,0.00038535,30]
[393702799,1762933842613,-5602.58139114,0.00038553,3]
[393702801,1762933842622,-613.7947703,0.00038573,120]
[393702803,1762933842631,-150.0,0.00038573,60]
[393702805,1762933842640,-500.0,0.00038573,60]
[393702807,1762933842650,-500.0,0.00038573,10]
[393702810,1762933842659,-543.29876332,0.00038573,60]
[393702812,1762933842668,-500.0,0.00038573,60]
[393702814,1762933842677,-500.0,0.00038573,2]
[393702816,1762933842687,-729.0,0.00038573,60]
[393702818,1762933842696,-500.0,0.00038573,60]
[393702819,1762933842705,-150.0,0.00038573,60]
[393702820,1762933842714,-200.0,0.00038575,24]
[393702822,1762933842723,-299.94,0.00038593,9]
[393702824,1762933842733,-5602.58139114,0.00038595,3]
[393702826,1762933842742,-1900.0,0.000386,14]
[393702828,1762933842752,-2274.67662181,0.00038605,2]
[393702830,1762933842761,-152.0,0.00038622,8]
[393702832,1762933842770,-582.0,0.0003863,90]
[393702834,1762933842779,-500.0,0.0003863,30]
[393702837,1762933842789,-153.59012997,0.00038658,30]
[393702839,1762933842798,-480.0,0.00038663,7]
[393702841,1762933842808,-357.9294872,0.0003868,2]
[393702843,1762933842817,-5602.58139114,0.0003868,3]
[393702845,1762933842827,-200.0,0.00038685,14]
[393702847,1762933842837,-5602.58139114,0.000387,3]
[393702848,1762933842846,-500.0,0.000387,120]
[393702849,1762933842857,-500.0,0.000387,120]
[393702850,1762933842866,-500.0,0.000387,120]
[393702851,1762933842875,-500.0,0.000387,120]
[393702852,1762933842884,-500.0,0.000387,120]
[393702853,1762933842894,-500.0,0.000387,120]
[393702854,1762933842904,-500.0,0.000387,120]
[393702855,1762933842913,-500.0,0.000387,120]
[393702856,1762933842922,-500.0,0.000387,120]
[393702857,1762933842932,-500.0,0.000387,120]
[393702858,1762933842941,-500.0,0.000387,120]
[393702859,1762933842951,-500.0,0.000387,120]
[393702860,1762933842961,-500.0,0.000387,120]
[393702861,1762933842970,-153.386069,0.000387,120]
[393702862,1762933842980,-300.454391,0.000387,120]
[393702863,1762933842989,-2500.0,0.000387,14]
[393702864,1762933843000,-500.0,0.00038709,30]
[393702865,1762933843009,-150.0,0.0003871,60]
[393702866,1762933843019,-500.0,0.0003871,60]
[393702867,1762933843029,-500.0,0.0003871,10]
[393702868,1762933843038,-355.79899462,0.0003871,2]
[393702869,1762933843048,-729.0,0.0003871,60]
[393702870,1762933843058,-500.0,0.0003871,60]
[393702871,1762933843068,-150.0,0.0003871,60]
[393702872,1762933843078,-500.0,0.00038743,30]
[393702873,1762933843087,-397.0,0.00038747,2]
[393702874,1762933843097,-5602.58139114,0.0003879,3]
[393702875,1762933843107,-153.59012997,0.00038795,30]
[393702876,1762933843116,-150.0,0.000388,120]
[393702877,1762933843127,-173.85338264,0.000388,120]
[393702878,1762933843137,-896.32361821,0.000388,60]
[393702879,1762933843147,-150.54399371,0.000388,120]
[393702880,1762933843156,-150.54399367,0.000388,120]
[393702881,1762933843165,-150.54399367,0.000388,120]
[393702882,1762933843175,-3200.0,0.000388,14]
[393702883,1762933843184,-150.54399367,0.000388,120]
[393702884,1762933843193,-150.54399367,0.000388,120]
[393702885,1762933843203,-150.54399367,0.000388,120]
[393702886,1762933843213,-150.54399367,0.000388,120]
[393702887,1762933843222,-150.54399367,0.000388,120]
[393702888,1762933843231,-150.54399367,0.000388,120]
[393702889,1762933843241,-150.54399367,0.000388,120]
[393702890,1762933843250,-150.54399367,0.000388,120]
[393702891,1762933843260,-150.54399367,0.000388,120]
[393702892,1762933843269,-150.54399367,0.000388,120]
[393702893,1762933843279,-150.54399367,0.000388,120]
[393702894,1762933843288,-150.54399367,0.000388,120]
[393702895,1762933843297,-150.54399367,0.000388,120]
[393702896,1762933843307,-150.54399367,0.000388,120]
[393702897,1762933843317,-1451.0,0.000388,7]
[393702898,1762933843327,-181.4484377,0.00038802,20]
[393702899,1762933843337,-500.0,0.00038803,30]
[393702900,1762933843347,-480.0,0.00038816,7]
[393702901,1762933843357,-509.10429346,0.00038821,5]
[393702902,1762933843368,-291.1449817,0.0003884,50]
[393702903,1762933843379,-5602.58139114,0.00038846,3]
[393702904,1762933843389,-262.41057865,0.00038847,60]
[393702905,1762933843399,-350.0,0.00038847,60]
[393702906,1762933843410,-350.0,0.00038847,10]
[393702907,1762933843420,-729.0,0.00038847,60]
[393702908,1762933843429,-350.0,0.00038847,60]
[393702909,1762933843440,-261.32446295,0.00038847,60]
[393702910,1762933843451,-2274.67662181,0.00038856,2]
[393702911,1762933843461,-150.54399367,0.00038863,120]
[393702912,1762933843471,-416.0,0.00038866,7]
[393702913,1762933843480,-200.0,0.00038887,20]
[393702914,1762933843489,-2563.2749,0.00038888,30]
[393702915,1762933843498,-5602.58139114,0.0003889,3]
[393702916,1762933843508,-309.09538691,0.000389,31]
[393702917,1762933843517,-600.0,0.000389,14]
[393702918,1762933843527,-1000.0,0.000389,7]
[393702919,1762933843536,-1000.0,0.00038903,7]
[393702920,1762933843545,-150.0,0.00038903,7]
[393702921,1762933843701,-500.0,0.00038904,30]
[393702922,1762933843712,-1700.0,0.00038917,7]
[393702923,1762933843722,-500.0,0.00038917,7]
[393702924,1762933843731,-153.59012997,0.00038959,30]
[393702925,1762933843742,-5602.58139114,0.0003896,3]
[393702926,1762933843751,-512.44975263,0.0003897,7]